bitfinex/quotes_ETHUSD_20251015
["timestamp","ask_amount","ask_price","bid_price","bid_amount"]
[1760555442288,0.75274091,3995.6,3995.2,0.4501]
[1760555442587,30.0,3995.7,3995.3,0.4501]
[1760555442991,30.0,3995.7,3995.3,2.95302936]
[1760555443198,30.0,3995.7,3995.3,0.4501]
[1760555443577,0.1248,3995.3,3995.2,2.50300317]
[1760555443783,1.728,3995.8,3995.3,2.50293536]
[1760555444011,30.0,3995.8,3995.3,2.50293536]
[1760555444407,30.0,3995.8,3995.4,2.50287333]
[1760555444608,12.48167292,3995.9,3995.4,2.50287333]
[1760555445114,12.48167292,3995.9,3995.1,2.71746431]
[1760555445115,0.1248,3995.4,3995.1,0.2144]
[1760555445419,30.0,3995.7,3995.1,0.2144]
[1760555445627,30.0,3995.7,3995.2,2.50299923]
[1760555445837,30.0,3995.8,3995.3,0.4501]
[1760555446130,0.001,3995.9,3995.5,2.50280913]
[1760555446295,0.001,3995.9,3995.7,2.50264136]
[1760555446906,0.001,3995.9,3995.7,2.95274136]
[1760555447122,0.001,3995.9,3995.7,0.4501]
[1760555448193,0.001,3995.9,3995.7,2.95277788]
[1760555449131,10.18399173,3996.4,3995.8,2.50262775]
[1760555449282,0.18399173,3996.4,3995.8,2.50262775]
[1760555449482,0.1248,3995.8,3995.7,2.9527781]
[1760555449705,0.1248,3995.8,3995.7,0.4501]
[1760555450485,0.1248,3995.8,3995.5,2.50280417]
[1760555450680,0.1248,3995.6,3995.5,2.50280417]
[1760555450991,0.2488,3995.6,3994.7,0.647]
[1760555451193,30.0,3995.7,3994.8,0.4326]
[1760555451408,30.0,3995.7,3995.2,2.50294852]
[1760555451596,0.2146,3995.8,3995.2,0.4326]
[1760555451921,10.2488,3995.9,3995.3,2.50293058]
[1760555451922,30.0,3995.9,3995.3,2.50293058]
[1760555452080,30.0,3995.9,3995.2,0.4326]
[1760555452081,32.50256946,3995.9,3995.2,2.93558884]
[1760555452286,12.50263837,3995.8,3995.1,2.73875509]
[1760555452508,2.50269751,3995.7,3995.1,2.73875509]
[1760555452812,30.0,3995.6,3995.1,2.50305509]
[1760555453584,30.0,3995.7,3994.9,0.4326]
[1760555453781,12.50275302,3995.6,3994.9,2.93577219]
[1760555453986,2.50275302,3995.6,3994.9,2.50317219]
[1760555454236,2.73899185,3995.7,3995.0,2.50311311]
[1760555454520,30.0,3995.6,3995.0,2.50311311]
[1760555454920,30.0,3995.6,3994.9,2.50318163]
[1760555455216,30.0,3995.6,3995.0,2.50312719]
[1760555455419,30.0,3995.6,3995.1,2.50305163]
[1760555455719,0.2363,3995.5,3995.0,2.50311132]
[1760555456319,3.205,3995.7,3995.1,3.15636625]
[1760555456520,1.728,3996.0,3995.5,2.50276772]
[1760555456705,1.728,3996.0,3995.4,2.50283794]
[1760555457023,1.728,3996.0,3995.5,2.50279659]
[1760555457421,2.50245161,3996.1,3995.5,2.50279659]
[1760555457716,2.50251237,3996.0,3995.4,2.50286068]
[1760555457891,30.0,3996.0,3995.4,2.50286068]
[1760555458093,30.0,3996.1,3995.3,2.5029405]
[1760555458292,30.0,3996.1,3995.4,2.50287831]
[1760555458293,32.50244978,3996.1,3995.4,2.50287831]
[1760555458646,30.0,3996.0,3995.4,2.50283898]
[1760555459313,30.0,3996.0,3995.5,2.50279493]
[1760555459511,30.0,3996.1,3995.5,2.50279493]
[1760555460434,2.93520027,3996.2,3995.5,2.50279493]
[1760555460435,1.728,3996.2,3995.6,2.50271359]
[1760555460597,1.728,3996.2,3995.7,2.50264228]
[1760555460921,0.1248,3995.6,3995.4,2.50287479]
[1760555461221,0.1248,3995.3,3994.7,2.71770408]
[1760555461391,0.1248,3995.2,3995.0,2.50312258]
[1760555461587,0.1248,3994.9,3994.8,2.50325423]
[1760555463221,0.1248,3994.9,3994.8,2.93945423]
[1760555464314,0.1248,3994.9,3994.8,2.50325423]
[1760555464714,0.1248,3994.9,3994.6,0.002]
[1760555464715,0.1248,3994.9,3994.7,2.50329998]
[1760555464919,0.1248,3994.9,3994.7,2.50330204]
[1760555465117,44.23131689,3994.7,3994.6,0.002]
[1760555465319,34.23131689,3994.7,3994.6,0.002]
[1760555465520,34.47011689,3994.7,3994.6,0.002]
[1760555465719,35.43771712,3994.7,3994.6,0.002]
[1760555465904,35.43771712,3994.7,3994.3,0.002]
[1760555465905,34.8651049,3994.4,3994.3,0.002]
[1760555466108,38.62520905,3994.4,3994.3,0.002]
[1760555466309,38.62520905,3994.4,3994.1,0.002]
[1760555466310,3.13723026,3994.2,3994.1,0.002]
[1760555466560,35.19923049,3994.2,3994.1,0.002]
[1760555466705,35.43413049,3994.2,3994.1,0.002]
[1760555467239,3.13735563,3994.0,3993.9,1e-08]
[1760555467438,38.29145955,3994.0,3993.9,1e-08]
[1760555467606,38.86035978,3994.0,3993.9,1e-08]
[1760555467812,39.1437928,3994.0,3993.9,1e-08]
[1760555468114,39.63226482,3994.0,3993.9,1e-08]
[1760555468544,9.63226482,3994.0,3993.9,1e-08]
[1760555468743,18.89689449,3993.9,3991.1,0.010903]
[1760555468949,9.41908286,3993.9,3991.1,0.010903]
[1760555469138,9.65588286,3993.9,3991.1,0.010903]
[1760555469447,34.23351212,3991.2,3991.1,0.010903]
[1760555469818,34.47031212,3991.2,3991.1,0.010903]
[1760555470016,45.52190573,3991.2,3991.1,0.010903]
[1760555470225,45.85590596,3991.2,3991.1,1e-08]
[1760555470442,0.6336,3990.0,3988.6,0.2171]
[1760555470642,30.0,3989.5,3988.7,2.13493488]
[1760555470846,1.728,3989.2,3988.8,0.4378]
[1760555471022,1.728,3988.9,3988.6,0.6533]
[1760555471224,1.728,3988.9,3988.5,690.68194927]
[1760555471225,0.6336,3988.6,3988.5,690.68194927]
[1760555471481,31.728,3988.6,3988.5,690.68194927]
[1760555471782,22.93,3988.6,3988.5,693.62535749]
[1760555471934,1.728,3988.6,3988.5,693.62535749]
[1760555472119,10.214,3989.9,3988.5,693.61830553]
[1760555472321,1.728,3989.5,3988.6,2.94334536]
[1760555472558,30.0,3990.6,3989.8,2.50633784]
[1760555472861,30.0,3990.6,3989.4,0.2171]
[1760555472862,30.0,3990.2,3989.6,2.50650369]
[1760555473023,30.0,3990.0,3989.6,2.50650369]
[1760555473221,30.0,3990.0,3989.7,2.50643584]
[1760555473439,4.641,3990.0,3989.4,0.2171]
[1760555473613,30.0,3990.7,3989.8,0.4362]
[1760555473816,27.652,3990.7,3989.8,0.4362]
[1760555474123,30.0,3991.2,3990.7,2.50581796]
[1760555474643,1.728,3991.1,3990.7,2.50581796]
[1760555474845,22.041,3991.0,3990.9,2.50570046]
[1760555475044,20.993,3991.5,3991.0,2.50563768]
[1760555475229,0.1248,3990.9,3990.6,0.2171]
[1760555475432,0.1248,3990.9,3990.8,2.50576325]
[1760555475749,30.0,3991.9,3990.8,0.4362]
[1760555475971,30.0,3991.9,3991.4,2.50533688]
[1760555476122,2.907,3991.4,3991.2,0.2171]
[1760555476333,1.728,3991.8,3991.5,2.50531883]
[1760555476557,30.0,3991.7,3991.2,3.15879386]
[1760555476755,30.0,3991.7,3991.3,2.50544935]
[1760555476926,30.0,3991.9,3991.2,2.72260338]
[1760555477129,30.0,3991.7,3991.3,2.50544109]
[1760555477440,30.0,3991.7,3991.2,0.2171]
[1760555477441,15.15,3991.5,3991.4,2.50538658]
[1760555477643,31.728,3991.3,3991.2,2.72256587]
[1760555477849,31.728,3991.3,3991.2,0.2171]
[1760555478055,31.728,3991.2,3991.1,2.50552584]
[1760555479952,12.528,3991.2,3991.1,2.50552584]
[1760555480439,0.4545,3992.0,3991.3,2.50539373]
[1760555480440,1.728,3991.7,3991.3,2.50539373]
[1760555480640,1.728,3991.5,3991.0,0.002]
[1760555480858,0.2195,3992.0,3991.0,0.002]
[1760555480859,30.0,3991.2,3991.0,0.002]
[1760555481058,31.728,3991.2,3991.1,2.50555869]
[1760555481835,14.171,3991.2,3991.1,2.50555869]
[1760555482143,1.728,3991.2,3991.1,2.93995869]
[1760555482741,0.2195,3992.0,3991.1,2.93995869]
[1760555482742,0.2195,3992.1,3991.1,0.4344]
[1760555482942,1.728,3992.0,3991.8,2.5050947]
[1760555483169,1.728,3991.9,3991.8,2.50513552]
[1760555483368,0.2252,3992.4,3991.9,2.50502178]
[1760555483674,10.0,3992.2,3991.5,0.4344]
[1760555483865,30.0,3992.0,3991.0,0.002]
[1760555484070,1.9517,3992.1,3991.0,0.002]
[1760555484281,1.728,3991.7,3991.3,2.5054001]
[1760555484437,11.9532,3991.9,3991.3,2.5054001]
[1760555484438,30.0,3991.6,3991.3,2.5054001]
[1760555484766,30.0,3991.6,3991.4,2.50537621]
[1760555484934,30.0,3991.6,3991.5,2.50532381]
[1760555485138,30.0,3991.6,3991.0,2.50757963]
[1760555485374,1.728,3991.7,3991.0,0.002]
[1760555485555,7.353,3991.6,3991.4,2.505369]
[1760555485733,1.728,3991.7,3991.5,2.50532381]
[1760555485932,17.611,3991.6,3991.5,2.50532381]
[1760555486170,17.311,3991.6,3991.5,2.50532381]
[1760555486559,17.311,3991.6,3991.4,2.50538473]
[1760555486757,40.0,3991.6,3991.4,2.50538473]
[1760555486943,30.0,3991.6,3991.4,2.50538473]
[1760555487268,30.0,3991.6,3991.5,2.50532381]
[1760555487467,30.0,3991.6,3991.4,2.50536885]
[1760555487850,1.728,3991.7,3991.0,0.4364]
[1760555487851,0.1248,3991.4,3991.1,2.50556924]
[1760555488054,0.1248,3991.2,3991.0,0.002]
[1760555488257,1.728,3991.5,3991.1,2.50555518]
[1760555488461,30.0,3991.4,3991.0,2.5076239]
[1760555488662,30.0,3991.6,3991.1,2.50556809]
[1760555488881,30.0,3991.2,3991.0,0.002]
[1760555489057,41.728,3991.1,3991.0,0.002]
[1760555489263,34.4572749,3991.1,3991.0,0.002]
[1760555489864,35.0908749,3991.1,3991.0,0.002]
[1760555490445,35.42487513,3991.1,3991.0,0.002]
[1760555490840,35.42487513,3991.1,3990.6,0.002]
[1760555490841,4.86742604,3990.7,3990.6,1e-08]
[1760555491101,4.86742604,3990.7,3988.5,690.68194927]
[1760555491102,31.728,3990.6,3988.5,690.68194927]
[1760555491242,30.0,3989.3,3988.5,690.68194927]
[1760555491564,19.748,3989.1,3988.6,0.4344]
[1760555491751,19.748,3989.1,3988.7,0.4344]
[1760555491959,19.748,3989.1,3988.8,0.4344]
[1760555492150,19.748,3989.1,3988.8,2.94140483]
[1760555492355,30.0,3990.0,3988.9,0.4344]
[1760555492563,1.728,3990.6,3989.0,2.50689395]
[1760555492855,0.2234,3990.9,3989.1,0.67516831]
[1760555493062,30.0,3991.0,3990.4,2.50596626]
[1760555493255,30.0,3991.0,3990.2,0.2157]
[1760555493447,2.1659,3990.9,3989.9,2.50632847]
[1760555493645,30.0,3990.8,3989.3,2.506657]
[1760555493867,30.0,3990.4,3989.6,2.50647809]
[1760555494182,30.0,3990.4,3989.3,0.4344]
[1760555494183,30.0,3990.4,3989.5,2.50656723]
[1760555494475,30.0,3990.1,3989.3,0.4344]
[1760555494652,30.0,3990.3,3989.9,2.50630437]
[1760555494853,30.0,3990.6,3989.9,0.4344]
[1760555495060,1.728,3990.3,3989.9,0.4344]
[1760555495255,2.50582363,3990.8,3989.1,0.2157]
[1760555495256,1.728,3990.7,3990.2,0.2157]
[1760555495464,1.728,3990.5,3990.3,2.50602761]
[1760555495657,0.2251,3990.9,3990.2,0.2157]
[1760555495855,30.0,3990.6,3990.2,0.2157]
[1760555496148,2.50565096,3991.0,3990.2,3.15623511]
[1760555496370,1.728,3990.9,3990.4,2.5060022]
[1760555496570,1.953,3991.4,3990.5,2.50590048]
[1760555496845,1.728,3991.0,3990.5,2.50590048]
[1760555497051,2.50533335,3991.5,3990.6,0.4344]
[1760555497264,1.728,3991.1,3990.7,2.50582251]
[1760555497482,1.728,3991.0,3990.7,2.50582251]
[1760555497677,8.706,3991.3,3990.8,0.4344]
[1760555497878,40.0,3991.5,3990.8,2.94014624]
[1760555498180,0.001,3991.2,3990.8,0.4344]
[1760555498966,0.001,3991.2,3990.8,2.5057508]
[1760555499291,0.001,3991.2,3990.9,0.4344]
[1760555499688,0.001,3991.2,3990.7,2.505814]
[1760555499926,0.001,3991.2,3990.7,2.940214]
[1760555500193,0.001,3991.2,3990.8,0.4344]
[1760555500390,0.001,3991.2,3990.8,2.94015136]
[1760555500592,0.001,3991.2,3991.1,0.2157]
[1760555501001,0.001,3991.2,3991.1,0.6501]
[1760555501489,0.001,3991.2,3991.1,3.1556749]
[1760555508504,0.001,3991.2,3991.1,3.2804749]
[1760555509708,0.001,3991.2,3991.1,3.30553064]
[1760555509911,0.001,3991.2,3991.1,4.49519532]
[1760555510701,0.001,3991.2,3991.1,14.64007576]
[1760555510903,0.001,3991.2,3991.1,16.36807576]
[1760555515838,0.001,3991.2,3991.1,18.90907576]
[1760555516037,0.001,3991.2,3991.1,21.42727576]
[1760555516494,0.001,3991.2,3991.1,21.55207576]
[1760555516892,0.001,3991.6,3991.5,3.13892381]
[1760555517222,0.001,3991.6,3991.5,11.90097619]
[1760555517538,0.225,3994.1,3994.0,2.50375563]
[1760555517695,0.4426,3994.1,3994.0,2.50375563]
[1760555519329,0.2176,3994.3,3994.2,2.50363026]
[1760555519838,0.2204,3994.5,3994.3,2.50356758]
[1760555520196,0.2231,3994.4,3994.3,2.50356758]
[1760555521339,0.2231,3994.4,3993.2,2.50425723]
[1760555521340,0.2231,3994.4,3993.8,2.50386697]
[1760555521642,0.2231,3994.4,3992.4,2.192]
[1760555521643,14.853,3993.8,3992.4,2.50475904]
[1760555521935,0.222,3993.7,3993.1,2.50429986]
[1760555522135,0.222,3993.6,3992.2,1.728]
[1760555522441,0.2204,3993.9,3993.6,2.50398486]
[1760555522664,0.222,3993.8,3993.6,2.50398486]
[1760555522962,0.2204,3993.9,3992.8,2.50448387]
[1760555522963,0.222,3993.7,3993.2,2.50425656]
[1760555523269,0.222,3993.6,3993.5,2.50406342]
[1760555523763,0.222,3993.6,3992.2,1.728]
[1760555523960,0.222,3993.5,3993.2,2.50420384]
[1760555524168,0.2204,3993.9,3993.3,2.50419452]
[1760555524169,0.222,3993.4,3993.3,2.50419452]
[1760555524335,0.222,3993.8,3993.6,2.50396405]
[1760555524536,0.222,3993.7,3993.6,2.50396405]
[1760555529273,0.001,3994.4,3994.3,2.50356758]
[1760555529570,1.729,3994.4,3994.3,2.50356758]
[1760555529781,0.001,3994.4,3994.3,2.50356758]
[1760555529937,0.223,3994.4,3994.3,2.50356758]
[1760555530898,0.1258,3994.4,3994.3,2.50356758]
[1760555531399,0.3478,3994.4,3994.3,2.50356758]
[1760555532094,0.1258,3994.4,3994.3,2.50356758]
[1760555533455,0.3478,3994.4,3994.3,2.50356758]
[1760555533853,0.223,3994.4,3994.3,2.50356758]
[1760555534054,0.001,3994.4,3994.3,2.50356758]
[1760555534653,0.223,3994.4,3993.2,0.464]
[1760555534882,0.223,3994.4,3993.2,0.84738567]
[1760555535080,0.223,3994.4,3994.3,2.50356758]
[1760555535281,0.001,3994.4,3994.3,2.50356758]
[1760555536754,0.223,3994.4,3994.3,2.50356758]
[1760555537985,0.001,3994.4,3994.3,2.50356758]
[1760555539830,0.001,3994.4,3994.3,3.09729899]
[1760555540119,0.001,3994.4,3994.3,2.50356758]
[1760555541483,0.001,3994.4,3994.3,2.96256758]
[1760555543421,0.001,3994.4,3994.3,2.98760325]
[1760555543788,0.001,3994.4,3994.3,3.11240325]
[1760555545498,0.001,3994.4,3994.3,3.74600325]
[1760555545700,0.001,3994.4,3994.3,6.09550689]
[1760555550529,0.001,3994.4,3994.3,5.00290689]
[1760555551029,0.001,3994.4,3994.3,2.62836758]
[1760555552140,0.2001,3994.4,3994.3,2.62836758]
[1760555552935,0.001,3994.4,3994.3,2.62836758]
[1760555553891,0.2001,3994.4,3993.1,2.73617874]
[1760555554032,0.1248,3994.1,3993.4,0.1248]
[1760555554237,0.1248,3994.1,3993.9,2.50376644]
[1760555554434,0.1991,3994.0,3993.9,2.50376644]
[1760555554843,0.1248,3994.1,3994.0,2.50375563]
[1760555555373,0.001,3994.4,3994.3,2.50356758]
[1760555555666,0.2001,3994.4,3994.3,2.50356758]
[1760555558764,0.001,3994.4,3994.3,3.0042892]
[1760555558976,0.001,3994.4,3994.3,4.24672487]
[1760555559141,0.001,3994.4,3994.3,16.34208628]
[1760555559767,0.001,3994.4,3994.3,18.88208628]
[1760555559973,0.001,3994.4,3994.3,16.34208628]
[1760555564521,0.001,3994.4,3994.3,18.88208628]
[1760555566288,1e-08,3995.2,3995.1,3.13666625]
[1760555566506,1e-08,3995.2,3995.1,15.79452996]
[1760555566726,1e-08,3995.2,3995.1,16.37832996]
[1760555570845,1e-08,3995.2,3995.1,16.25352996]
[1760555572551,1e-08,3996.4,3996.3,3.13591464]
[1760555572849,1e-08,3996.4,3996.3,14.09214243]
[1760555573544,1e-08,3996.4,3996.3,15.82014243]
[1760555573742,1e-08,3996.4,3996.3,18.78954243]
[1760555573900,0.001,3997.1,3997.0,2.5018764]
[1760555576339,0.001,3997.1,3997.0,3.16049516]
[1760555576545,0.001,3997.1,3997.0,4.76597978]
[1760555580229,0.001,3997.1,3997.0,5.22797978]
[1760555580467,0.001,3997.1,3997.0,5.20296102]
[1760555580862,0.001,3997.1,3997.0,5.32776102]
[1760555581265,0.12934388,3998.0,3997.9,2.50131318]
[1760555586441,0.13034388,3998.0,3997.9,2.50131318]
[1760555586643,1.58084388,3999.2,3998.6,2.5008439]
[1760555586873,1.58084388,3999.2,3998.4,2.50099519]
[1760555587080,1.58084388,3999.2,3998.7,2.5008072]
[1760555587299,21.248,3999.3,3998.8,2.50071228]
[1760555587584,21.248,3999.3,3998.7,2.50078764]
[1760555587585,0.001,3998.8,3998.7,2.50078764]
[1760555587959,0.001,3998.8,3998.6,2.50086644]
[1760555588142,0.001,3998.8,3998.7,2.50081276]
[1760555591190,0.1258,3998.8,3998.7,2.50081276]
[1760555591960,0.1258,3998.8,3998.1,0.462]
[1760555591961,0.001,3998.8,3997.1,2.50179373]
[1760555592160,0.001,3998.8,3997.2,0.65713433]
[1760555592373,0.001,3998.8,3998.3,2.50103363]
[1760555592789,2.50179548,3998.8,3998.0,2.50122935]
[1760555592976,1.728,3998.7,3998.1,2.50113604]
[1760555593176,1.728,3998.7,3998.2,2.50112365]
[1760555593396,0.001,3998.8,3998.0,2.50120167]
[1760555593570,30.0,3998.5,3996.6,0.6866]
[1760555593755,30.0,3998.5,3996.8,2.5020016]
[1760555593756,2.50112619,3998.2,3996.8,2.5020016]
[1760555593965,2.50112619,3998.2,3997.5,2.50152121]
[1760555594904,1.728,3998.4,3996.8,0.462]
[1760555595110,1.728,3998.5,3997.8,2.5013614]
[1760555595409,1.728,3998.3,3997.7,2.50142343]
[1760555596100,1.728,3998.3,3997.8,2.5013698]
[1760555596308,30.0,3998.4,3997.2,2.50175122]
[1760555596602,1.728,3998.3,3997.1,2.50181381]
[1760555596798,1.728,3998.3,3997.8,2.50136608]
[1760555597020,1.728,3998.3,3997.1,0.2246]
[1760555597169,1.728,3998.5,3998.1,2.50118237]
[1760555597373,1.728,3998.3,3998.1,2.50118237]
[1760555597577,0.099,3998.2,3997.2,0.462]
[1760555597801,0.099,3998.2,3997.8,2.50131741]
[1760555598006,1.728,3998.3,3997.8,2.50131741]
[1760555598304,0.099,3998.1,3997.9,2.5013006]
[1760555598503,0.099,3998.0,3997.9,2.5013006]
[1760555600311,0.099,3998.0,3997.2,0.31883971]
[1760555600485,0.001,3998.8,3996.3,1.01223071]
[1760555600486,0.099,3997.9,3996.3,1.01223071]
[1760555600831,0.099,3997.8,3996.4,2.50225202]
[1760555601108,0.099,3997.8,3997.2,2.50172574]
[1760555601323,0.099,3997.8,3997.4,2.50158781]
[1760555601681,0.099,3997.7,3997.4,2.50158781]
[1760555602498,0.1248,3997.4,3997.2,2.50173534]
[1760555602784,0.099,3997.7,3997.4,2.50159369]
[1760555603000,0.1248,3997.2,3996.7,0.4484]
[1760555603183,0.099,3997.7,3997.1,2.50181381]
[1760555604010,0.099,3997.7,3997.4,2.50159992]
[1760555604215,0.099,3997.7,3997.4,0.002]
[1760555604519,1.728,3998.4,3997.5,0.4484]
[1760555604719,9.664,3998.3,3997.5,0.4484]
[1760555604886,17.043,3998.3,3997.5,0.4484]
[1760555605319,17.043,3998.3,3998.1,2.50117707]
[1760555605503,17.043,3998.3,3998.0,2.50123484]
[1760555605823,0.1248,3998.0,3997.6,2.50144407]
[1760555605986,0.099,3998.2,3997.9,2.50126922]
[1760555606315,0.1248,3997.5,3997.4,2.50362605]
[1760555606613,0.1248,3997.5,3997.4,3.51995211]
[1760555607717,0.001,3998.8,3998.4,2.50098725]
[1760555608019,0.1248,3997.8,3997.7,2.50143137]
[1760555608717,0.1248,3997.8,3997.7,2.94983137]
[1760555609140,0.001,3998.8,3998.4,2.50096237]
[1760555609323,0.001,3998.8,3997.4,0.002]
[1760555609324,0.001,3998.8,3998.3,2.50102298]
[1760555609526,0.099,3998.7,3998.3,2.50102298]
[1760555609723,0.001,3998.8,3997.8,0.4484]
[1760555610046,0.001,3998.8,3997.9,2.50131318]
[1760555610208,0.1248,3998.1,3998.0,2.50125062]
[1760555610619,0.1248,3998.1,3998.0,2.94965062]
[1760555611906,0.001,3998.8,3998.7,2.50081276]
[1760555612900,0.001,3998.8,3998.6,2.50082013]
[1760555613103,0.001,3998.8,3998.7,2.50081276]
[1760555622755,0.001,3998.8,3998.5,2.50089852]
[1760555622921,0.001,3998.8,3997.4,0.4504]
[1760555623123,0.099,3998.7,3998.4,2.50096268]
[1760555623652,0.001,3998.8,3998.5,2.50092443]
[1760555625758,0.1,3998.8,3998.0,2.50125062]
[1760555625963,0.1248,3998.3,3997.6,2.94987719]
[1760555626163,0.099,3998.7,3998.2,2.50112442]
[1760555626369,0.099,3998.7,3998.3,2.50105952]
[1760555626876,0.001,3998.8,3998.3,2.50105952]
[1760555627174,0.099,3998.7,3998.3,2.50105952]
[1760555627864,0.099,3998.7,3997.9,2.50125165]
[1760555628065,2.50177236,3998.8,3997.7,2.50137933]
[1760555628066,0.1248,3997.9,3997.7,2.50137933]
[1760555628252,0.1248,3997.9,3997.5,2.50156347]
[1760555628456,30.0,3998.3,3997.9,2.50130545]
[1760555628763,30.0,3998.1,3997.5,2.50155954]
[1760555628952,30.0,3998.1,3997.5,2.50154681]
[1760555629158,0.1248,3997.5,3997.4,0.002]
[1760555629336,0.1248,3997.5,3997.4,2.50362605]
[1760555629761,0.1248,3997.5,3997.4,0.002]
[1760555630458,0.1248,3997.5,3997.4,2.50362605]
[1760555631362,0.1248,3997.5,3997.4,2.97822605]
[1760555631971,0.1248,3997.5,3997.4,2.50362605]
[1760555632268,0.001,3998.8,3997.4,2.50362605]
[1760555632269,18.835,3998.0,3997.9,2.50129654]
[1760555632476,12.38,3998.0,3997.9,2.50129654]
[1760555633157,0.1248,3997.9,3997.6,0.4746]
[1760555633368,1.728,3998.0,3997.6,0.4746]
[1760555633574,0.1248,3997.7,3997.6,2.5015009]
[1760555634864,0.1248,3997.7,3997.6,2.9679009]
[1760555637069,0.1248,3997.7,3997.6,2.5015009]
[1760555641277,0.1248,3997.7,3997.6,2.9679009]
[1760555641839,0.1248,3997.7,3997.6,2.5015009]
[1760555642045,0.1248,3997.7,3997.6,2.9679009]
[1760555642544,0.1248,3997.7,3997.6,2.5015009]
[1760555644046,0.1248,3997.7,3997.4,0.002]
[1760555644247,30.0,3997.8,3997.4,0.002]
[1760555644778,4.32827141,3998.0,3997.4,0.002]
[1760555644779,17.408,3997.7,3997.4,0.002]
[1760555644988,30.0,3997.9,3997.4,0.002]
[1760555645161,30.0,3997.9,3997.4,2.5036162]
[1760555645347,30.0,3997.9,3997.4,0.002]
[1760555645681,32.60032523,3997.9,3997.4,0.002]
[1760555645982,30.0,3997.8,3997.4,0.002]
[1760555646779,13.824,3997.9,3997.4,0.002]
[1760555646947,13.824,3997.9,3997.4,2.5036059]
[1760555647349,13.824,3997.9,3997.4,0.002]
[1760555647562,16.32533912,3997.9,3997.4,0.002]
[1760555647779,30.0,3997.8,3997.4,0.002]
[1760555648659,30.0,3997.7,3997.4,0.002]
[1760555648856,30.099,3997.7,3997.4,0.002]
[1760555649080,1.728,3998.0,3997.4,0.002]
[1760555649081,2.60054386,3997.6,3997.4,0.002]
[1760555649291,30.0,3997.5,3997.4,0.002]
[1760555649472,22.209,3997.5,3997.4,0.002]
[1760555649691,30.0,3997.7,3997.4,0.002]
[1760555650183,30.0,3997.6,3997.4,0.002]
[1760555652983,30.0,3997.5,3997.4,0.002]
[1760555653890,30.0,3997.6,3997.4,0.002]
[1760555654101,30.0,3997.7,3997.4,0.002]
[1760555654771,30.0,3997.6,3997.4,0.002]
[1760555657194,30.0,3997.8,3997.4,0.002]
[1760555657365,30.0,3997.6,3997.4,0.002]
[1760555657567,1.728,3997.9,3997.4,0.4684]
[1760555657894,20.814,3997.6,3997.4,0.002]
[1760555658095,1.728,3997.7,3997.4,0.002]
[1760555658298,30.0,3997.6,3997.4,0.002]
[1760555659110,30.0,3997.6,3997.4,2.50361828]
[1760555660693,14.706,3997.6,3997.4,0.002]
[1760555660885,4.655,3997.6,3997.5,2.95026347]
[1760555661606,9.952,3998.1,3997.6,2.5015009]
[1760555661808,1.728,3998.0,3997.7,2.95013007]
[1760555662120,1.728,3998.0,3997.8,0.4487]
[1760555662317,1.728,3997.7,3997.4,0.002]
[1760555662520,0.1248,3997.6,3997.4,0.002]
[1760555662725,2.60052018,3997.6,3997.4,0.002]
[1760555662922,30.0,3997.5,3997.4,0.002]
[1760555664216,40.099,3997.5,3997.4,0.002]
[1760555664433,30.099,3997.5,3997.4,0.002]
[1760555664583,32.50156347,3997.5,3997.4,0.002]
[1760555664783,32.60056347,3997.5,3997.4,0.002]
[1760555664985,30.099,3997.5,3997.4,0.002]
[1760555665804,30.0,3997.5,3997.4,0.002]
[1760555666210,0.099,3997.8,3997.4,0.002]
[1760555666211,1.728,3997.8,3997.4,0.002]
[1760555666405,1.728,3997.6,3997.4,0.002]
[1760555666811,1.728,3997.8,3997.4,0.4507]
[1760555667111,2.5013344,3997.9,3997.4,0.4507]
[1760555667112,1.827,3998.3,3997.4,0.002]
[1760555667314,30.0,3997.8,3997.4,2.95231393]
[1760555667620,1.728,3997.9,3997.4,2.95231269]
[1760555667783,1.728,3997.7,3997.5,0.4487]
[1760555668813,1.728,3997.7,3997.4,2.50361269]
[1760555668814,0.1248,3997.5,3997.4,0.002]
[1760555670625,0.1248,3997.5,3997.4,2.95232605]
[1760555671597,0.1248,3997.5,3997.4,0.4507]
[1760555672229,0.1248,3997.5,3997.4,2.95232605]
[1760555672859,0.1248,3997.5,3997.4,0.4507]
[1760555673511,0.1248,3997.5,3997.4,2.95232605]
[1760555674430,0.1248,3997.5,3997.4,0.4507]
[1760555675332,0.1248,3997.5,3997.4,2.95232605]
[1760555675692,0.75230864,3998.7,3997.4,1.01939726]
[1760555675901,0.75230864,3998.7,3998.0,2.50123134]
[1760555676135,0.75230864,3998.7,3998.3,2.50104989]
[1760555676136,30.0,3998.7,3998.3,2.50104989]
[1760555676305,30.0,3998.7,3998.1,2.50114351]
[1760555676907,30.0,3998.7,3998.2,2.50111932]
[1760555677136,30.0,3998.7,3998.3,2.94975318]
[1760555677331,30.0,3998.7,3998.2,2.50110681]
[1760555678346,21.877,3998.7,3998.3,0.4487]
[1760555678512,1.728,3998.6,3998.4,2.94968823]
[1760555678709,0.001,3998.8,3998.5,0.4487]
[1760555679030,1.728,3998.6,3998.5,0.4487]
[1760555679235,0.001,3998.8,3998.5,0.4487]
[1760555679838,1.728,3998.6,3998.5,2.94963138]
[1760555680239,0.001,3998.8,3998.5,2.94963138]
[1760555680402,1.729,3998.8,3998.5,2.94963138]